bitfinex/quotes_SOLUSD_20220207
["timestamp","ask_amount","ask_price","bid_price","bid_amount"]
[1644202404256,101.42958435,115.55,115.41,10.41]
[1644202404455,93.10372713,115.53,115.41,6.0]
[1644202404675,86.97604586,115.51,115.4,16.7013044]
[1644202405251,98.92219159,115.51,115.4,10.7013044]
[1644202405651,111.62319159,115.51,115.4,10.7013044]
[1644202406153,45.96410961,115.48,115.4,23.6976044]
[1644202406351,46.21410961,115.48,115.4,23.6976044]
[1644202407151,59.21080961,115.48,115.4,23.6976044]
[1644202407752,59.21080961,115.48,115.4,23.9476044]
[1644202408155,59.21080961,115.48,115.4,23.6976044]
[1644202408470,58.96080961,115.48,115.4,23.6976044]
[1644202409054,58.96080961,115.48,115.4,10.7013044]
[1644202409656,59.21080961,115.48,115.4,10.9513044]
[1644202409858,12.9967,115.48,115.4,10.9513044]
[1644202410157,12.9947,115.5,115.4,16.9513044]
[1644202410356,13.2447,115.5,115.4,29.9470044]
[1644202411059,56.4624729,115.5,115.4,29.6970044]
[1644202412256,56.4624729,115.5,115.4,29.9470044]
[1644202414958,49.0388,115.52,115.4,29.9470044]
[1644202415158,49.0388,115.52,115.4,34.2770044]
[1644202415971,37.24430072,115.51,115.4,34.2770044]
[1644202416260,37.24430072,115.51,115.4,29.9470044]
[1644202417063,37.49430072,115.51,115.4,29.9470044]
[1644202417762,37.49430072,115.51,115.4,29.6970044]
[1644202418766,39.68113989,115.51,115.4,29.6970044]
[1644202419684,37.49430072,115.51,115.4,29.6970044]
[1644202419887,52.67393989,115.51,115.4,29.9470044]
[1644202420486,52.67393989,115.51,115.4,13.5370044]
[1644202420688,109.50393989,115.51,115.4,0.2913044]
[1644202420887,119.01324645,115.51,115.4,0.2913044]
[1644202422687,61.93324645,115.51,115.4,0.2913044]
[1644202422888,50.23710072,115.51,115.4,10.7013044]
[1644202423089,37.24430072,115.51,115.4,10.7013044]
[1644202423289,37.24430072,115.51,115.4,16.9513044]
[1644202424091,37.24430072,115.51,115.4,19.12587168]
[1644202424289,37.49430072,115.51,115.4,19.12587168]
[1644202425096,37.49430072,115.51,115.4,32.12177168]
[1644202426493,37.24430072,115.51,115.4,32.12177168]
[1644202426692,37.49430072,115.51,115.4,32.12177168]
[1644202427294,37.49430072,115.51,115.4,31.95438048]
[1644202427493,37.49430072,115.51,115.4,36.28438048]
[1644202428597,34.58164503,115.49,115.4,28.1098132]
[1644202428793,34.83164503,115.49,115.4,4.9126088]
[1644202429795,41.18183085,115.47,115.4,17.9091088]
[1644202429994,0.25,115.49,115.4,23.9891088]
[1644202430198,49.0388,115.52,115.4,32.16367608]
[1644202430796,49.0388,115.52,115.4,32.41367608]
[1644202430997,40.45469466,115.51,115.4,32.41367608]
[1644202431596,40.70469466,115.51,115.4,32.41367608]
[1644202433998,40.45469466,115.51,115.4,32.41367608]
[1644202436399,49.0388,115.52,115.4,32.41367608]
[1644202436600,49.0388,115.52,115.41,2.40985907]
[1644202436800,23.0765,115.54,115.44,12.989]
[1644202437099,23.0765,115.54,115.45,12.48]
[1644202437299,23.0765,115.54,115.45,12.73]
[1644202437502,23.0765,115.54,115.45,18.73]
[1644202438002,23.0765,115.54,115.47,12.9871]
[1644202438200,47.33267091,115.53,115.47,13.2371]
[1644202442808,36.0658,115.54,115.47,13.2371]
[1644202443009,23.0765,115.54,115.47,25.7171]
[1644202443306,223.0599,115.57,115.47,25.7171]
[1644202443307,47.34,115.57,115.47,25.7171]
[1644202443516,47.34,115.57,115.47,31.7171]
[1644202443907,90.28881568,115.57,115.47,31.7171]
[1644202444407,47.34,115.57,115.47,31.7171]
[1644202444607,12.9822,115.61,115.47,187.7471]
[1644202445208,40.85302411,115.6,115.47,187.7471]
[1644202445409,90.27752411,115.6,115.47,187.7471]
[1644202445613,103.26002411,115.6,115.47,187.7471]
[1644202446410,105.44686328,115.6,115.47,187.7471]
[1644202446811,105.69686328,115.6,115.47,187.7471]
[1644202447410,158.19686328,115.6,115.47,187.4971]
[1644202448011,197.75472465,115.6,115.47,25.4671]
[1644202448214,183.96283651,115.6,115.47,25.4671]
[1644202449211,179.63583651,115.6,115.47,25.4671]
[1644202449813,43.09755826,115.58,115.47,25.7171]
[1644202450113,47.47223725,115.55,115.47,12.73]
[1644202450511,47.72223725,115.55,115.47,12.73]
[1644202452017,12.9906,115.53,115.47,12.73]
[1644202452216,37.80675938,115.52,115.47,12.73]
[1644202453219,50.79815938,115.52,115.47,12.73]
[1644202453437,50.79815938,115.52,115.47,0.25]
[1644202453816,50.79815938,115.52,115.45,12.73]
[1644202454016,50.79815938,115.52,115.45,18.73]
[1644202454217,51.04815938,115.52,115.45,18.48]
[1644202454417,51.04815938,115.52,115.45,31.4708]
[1644202454917,38.05675938,115.52,115.45,31.4708]
[1644202455121,37.80675938,115.52,115.45,31.4708]
[1644202455318,24.0469,115.55,115.45,31.4708]
[1644202455518,23.5667,115.58,115.45,31.4708]
[1644202455720,23.5667,115.58,115.46,4.328]
[1644202455917,36.5523,115.58,115.49,12.9848]
[1644202456118,36.5523,115.58,115.49,18.9848]
[1644202456317,43.89163962,115.57,115.49,19.2348]
[1644202456518,23.5667,115.58,115.5,12.48]
[1644202456718,23.5667,115.58,115.5,18.73]
[1644202456919,24.2877,115.6,115.52,12.9824]
[1644202457318,24.2877,115.6,115.53,12.48]
[1644202457719,24.2877,115.6,115.53,12.73]
[1644202458921,36.1983,115.62,115.54,12.9808]
[1644202459122,23.9278,115.64,115.55,12.48]
[1644202459421,96.4517,115.66,115.55,12.48]
[1644202459422,23.481,115.66,115.55,12.73]
[1644202459622,23.481,115.66,115.55,18.73]
[1644202460022,45.68501361,115.65,115.55,18.73]
[1644202460224,83.38971361,115.65,115.57,12.9764]
[1644202460624,85.57655278,115.65,115.55,12.73]
[1644202461826,85.57655278,115.65,115.55,25.4598]
[1644202462027,138.07655278,115.65,115.55,12.48]
[1644202462227,138.07655278,115.65,115.52,12.48]
[1644202462426,47.32548763,115.63,115.52,12.48]
[1644202462627,34.44966515,115.6,115.52,18.73]
[1644202463027,34.69966515,115.6,115.52,18.73]
[1644202463227,34.69966515,115.6,115.53,12.9816]
[1644202463628,34.69966515,115.6,115.53,19.2316]
[1644202463826,49.87003917,115.62,115.53,19.2316]
[1644202464026,47.6832,115.62,115.54,12.48]
[1644202464227,47.6832,115.62,115.56,12.9788]
[1644202464627,47.6832,115.62,115.56,13.2288]
[1644202465028,95.60425585,115.62,115.56,13.2288]
[1644202466528,95.85425585,115.62,115.54,25.4602]
[1644202466728,2.18683917,115.61,115.54,18.48]
[1644202466927,47.6832,115.62,115.54,18.48]
[1644202467728,47.6832,115.62,115.54,31.4612]
[1644202467930,47.6832,115.62,115.54,31.7112]
[1644202469252,39.2778355,115.61,115.54,31.7112]
[1644202469752,47.6832,115.62,115.54,31.7112]
[1644202470752,47.6832,115.62,115.54,33.89118286]
[1644202471456,23.481,115.66,115.54,33.89118286]
[1644202471654,23.481,115.66,115.54,38.21618286]
[1644202472054,23.481,115.66,115.54,33.89118286]
[1644202472253,47.9228,115.66,115.54,33.89118286]
[1644202472853,47.9228,115.66,115.54,38.21618286]
[1644202473255,24.4418,115.66,115.54,38.21618286]
[1644202473454,23.3095,115.68,115.55,156.03]
[1644202473653,23.3095,115.68,115.58,12.9714]
[1644202473855,47.85480429,115.67,115.59,12.48]
[1644202474156,23.3095,115.68,115.59,12.48]
[1644202474354,23.3095,115.68,115.59,12.73]
[1644202474756,36.2832,115.68,115.59,12.48]
[1644202474954,38.17371922,115.67,115.59,12.48]
[1644202475355,38.42371922,115.67,115.59,12.48]
[1644202475754,51.39901922,115.67,115.59,12.48]
[1644202476759,103.89901922,115.67,115.59,12.48]
[1644202476958,106.08585839,115.67,115.57,12.48]
[1644202477158,78.46261922,115.67,115.56,12.9779]
[1644202477357,74.13861922,115.67,115.56,12.9779]
[1644202477758,126.63861922,115.67,115.56,12.9779]
[1644202477958,76.32545839,115.67,115.56,12.9779]
[1644202478158,74.13861922,115.67,115.56,13.2279]
[1644202478358,130.96261922,115.67,115.56,13.2279]
[1644202478561,133.14945839,115.67,115.56,13.2279]
[1644202479160,80.64945839,115.67,115.56,13.2279]
[1644202479363,74.13861922,115.67,115.56,13.2279]
[1644202479560,128.82545839,115.67,115.55,12.9796]
[1644202479761,133.14945839,115.67,115.55,13.2296]
[1644202480665,133.14945839,115.67,115.55,0.25]
[1644202480864,159.42134653,115.67,115.53,0.25]
[1644202481067,167.73631587,115.67,115.53,0.25]
[1644202481267,167.73631587,115.67,115.51,6.25]
[1644202481870,52.5,115.65,115.5,17.73]
[1644202482068,52.5,115.65,115.52,12.983]
[1644202482069,12.9832,115.61,115.52,12.983]
[1644202482269,38.18280083,115.6,115.52,12.983]
[1644202482470,38.18280083,115.6,115.52,18.983]
[1644202483073,38.43280083,115.6,115.5,24.7148]
[1644202483274,38.43280083,115.6,115.5,30.7148]
[1644202484072,44.58126841,115.58,115.5,30.7148]
[1644202484272,44.83126841,115.58,115.5,30.9648]
[1644202484672,44.83126841,115.58,115.5,17.98]
[1644202484874,44.83126841,115.58,115.5,17.73]
[1644202485073,44.58126841,115.58,115.5,11.73]
[1644202485674,44.83126841,115.58,115.5,11.73]
[1644202485874,57.81616841,115.58,115.5,11.73]
[1644202487876,57.81616841,115.58,115.48,12.9876]
[1644202488076,57.81616841,115.58,115.47,12.48]
[1644202488276,12.989,115.55,115.47,12.73]
[1644202488477,34.33144696,115.54,115.47,0.25]
[1644202488677,34.33144696,115.54,115.46,12.989]
[1644202488878,34.58144696,115.54,115.45,12.48]
[1644202489078,34.58144696,115.54,115.44,29.7982]
[1644202489977,47.57154696,115.54,115.44,29.7982]
[1644202490379,70.56484696,115.54,115.44,32.23360086]
[1644202491678,70.56484696,115.54,115.44,27.90660086]
[1644202492378,70.56484696,115.54,115.44,25.7212]
[1644202493477,70.56484696,115.54,115.44,25.4712]
[1644202494781,70.56484696,115.54,115.44,25.7212]
[1644202495183,70.56484696,115.54,115.44,12.48]
[1644202495380,80.66684696,115.54,115.43,12.9933]
[1644202495979,133.16684696,115.54,115.42,12.48]
[1644202496179,23.1407,115.53,115.42,12.48]
[1644202496380,12.9935,115.51,115.42,25.4744]
[1644202496580,38.32572039,115.5,115.42,25.4744]
[1644202496780,38.57572039,115.5,115.42,25.4744]
[1644202497180,38.32572039,115.5,115.42,25.4744]
[1644202497382,38.57572039,115.5,115.42,25.7244]
[1644202498182,51.56982039,115.5,115.42,25.7244]
[1644202498382,51.31982039,115.5,115.42,25.7244]
[1644202498983,51.31982039,115.5,115.42,24.2244]
[1644202499183,38.32572039,115.5,115.42,24.2244]
[1644202499583,38.32572039,115.5,115.42,30.2244]
[1644202499786,38.32572039,115.5,115.42,24.2244]
[1644202500191,23.1407,115.53,115.42,26.40980086]
[1644202500391,4.329,115.58,115.42,48.16202933]
[1644202500591,70.6517,115.6,115.47,12.986]
[1644202500792,70.6517,115.6,115.48,12.48]
[1644202500993,52.159,115.6,115.48,12.48]
[1644202501192,46.24018889,115.59,115.48,12.73]
[1644202501394,48.32506611,115.56,115.48,0.25]
[1644202502218,48.57506611,115.56,115.47,13.2379]
[1644202502820,12.9882,115.55,115.47,13.2379]
[1644202503023,37.07974106,115.54,115.45,25.4705]
[1644202503319,60.69884106,115.54,115.43,12.48]
[1644202503519,115.38568023,115.54,115.43,12.48]
[1644202504122,12.9915,115.53,115.43,25.4731]
[1644202504319,40.21621512,115.52,115.43,25.4731]
[1644202505321,53.45801512,115.52,115.43,12.48]
[1644202505521,105.95801512,115.52,115.41,25.80987016]
[1644202505720,105.95801512,115.52,115.41,13.32987016]
[1644202505721,39.44457455,115.5,115.41,13.32987016]
[1644202506121,39.69457455,115.5,115.41,13.32987016]
[1644202507120,39.69457455,115.5,115.41,13.57987016]
[1644202507924,39.69457455,115.5,115.41,0.33557016]
[1644202507925,52.68917455,115.5,115.41,0.33557016]
[1644202508122,40.41502753,115.48,115.41,0.33557016]
[1644202508323,40.66502753,115.48,115.41,0.33557016]
[1644202509323,40.41502753,115.48,115.41,0.33557016]
[1644202509822,40.66502753,115.48,115.41,0.33557016]
[1644202510726,53.66142753,115.48,115.41,0.33557016]
[1644202514128,116.6692667,115.48,115.41,0.33557016]
[1644202514528,129.1492667,115.48,115.41,0.33557016]
[1644202514727,52.5,115.46,115.4,0.0026088]
[1644202514929,13.0038,115.45,115.4,0.0026088]
[1644202515128,111.75526259,115.45,115.4,0.0026088]
[1644202515328,61.64942342,115.45,115.32,1.1999039]
[1644202515530,52.5,115.43,115.31,1.1999039]
[1644202515732,102.2576,115.42,115.3,1.63338765]
[1644202516030,104.44443917,115.42,115.3,0.43348375]
[1644202516229,50.99898829,115.41,115.3,0.43348375]
[1644202516430,13.0086,115.38,115.3,1.63338765]
[1644202516632,46.29947611,115.37,115.3,1.63338765]
[1644202516832,24.9546,115.4,115.31,12.48]
[1644202517041,24.803,115.42,115.31,12.48]
[1644202517247,24.803,115.42,115.31,16.813]
[1644202517633,2.18683917,115.41,115.31,22.813]
[1644202517836,37.76215284,115.4,115.31,6.0]
[1644202518239,37.76215284,115.4,115.3,14.11338765]
[1644202518436,38.01215284,115.4,115.3,14.11338765]
[1644202518637,38.01215284,115.4,115.31,13.0068]
[1644202519441,38.01215284,115.4,115.31,13.2568]
[1644202519640,38.01215284,115.4,115.31,19.2568]
[1644202520964,51.01795284,115.4,115.31,19.2568]
[1644202523441,51.01795284,115.4,115.31,19.0068]
[1644202523643,51.01795284,115.4,115.31,18.5068]
[1644202523844,51.01795284,115.4,115.31,6.0]
[1644202524142,51.01795284,115.4,115.3,18.91348375]
[1644202524747,51.01795284,115.4,115.3,19.16348375]
[1644202524943,51.01795284,115.4,115.3,32.17138375]
[1644202525750,53.20479201,115.4,115.3,32.17138375]
[1644202525949,51.01795284,115.4,115.3,32.17138375]
[1644202526151,51.01795284,115.4,115.3,31.67138375]
[1644202526750,51.01795284,115.4,115.3,31.42138375]
[1644202527150,105.70479201,115.4,115.3,6.0]
[1644202527351,118.18479201,115.4,115.27,12.48]
[1644202527552,13.0123,115.36,115.28,6.0]
[1644202527752,13.0123,115.36,115.25,37.94224494]
[1644202527753,13.2623,115.36,115.26,6.0]
[1644202527951,59.4208,115.36,115.25,43.94224494]
[1644202528152,43.12390508,115.35,115.26,13.0116]
[1644202528353,43.37390508,115.35,115.26,13.0116]
[1644202528770,120.34280508,115.35,115.25,2.77228021]
[1644202528972,122.52964425,115.35,115.25,2.77228021]
[1644202529171,120.34280508,115.35,115.25,2.77228021]
[1644202529372,120.34280508,115.35,115.25,2.27228021]
[1644202529574,2.18683917,115.34,115.25,0.08544104]
[1644202529775,52.5,115.31,115.22,4.335]
[1644202530080,69.317,115.31,115.22,4.335]
[1644202530273,71.75383917,115.31,115.22,4.335]
[1644202530473,43.23658008,115.3,115.22,4.335]
[1644202530875,13.0209,115.29,115.22,4.335]
[1644202531075,68.46268008,115.3,115.2,4.338]
[1644202531274,68.46268008,115.3,115.19,0.22140042]
[1644202531674,68.21268008,115.3,115.19,12.70140042]
[1644202531876,68.21268008,115.3,115.19,18.23930432]
[1644202532175,68.46268008,115.3,115.19,30.05820042]
[1644202532374,68.46268008,115.3,115.19,36.00100126]
[1644202532975,79.96968008,115.3,115.19,19.46160084]
[1644202533975,81.48088008,115.3,115.19,19.46160084]
[1644202534575,81.23088008,115.3,115.19,19.46160084]
[1644202534775,68.21268008,115.3,115.19,19.46160084]
[1644202535879,68.46268008,115.3,115.19,18.96160084]
[1644202536076,148.64771925,115.3,115.19,0.44280084]
[1644202536278,45.89146388,115.28,115.19,0.44280084]
[1644202536678,14.66683917,115.27,115.19,0.44280084]
[1644202536877,24.9429,115.26,115.19,0.44280084]
[1644202537079,37.9662,115.26,115.17,1.18206621]
[1644202537276,38.67403677,115.25,115.17,1.18206621]
[1644202537679,38.92403677,115.25,115.17,1.18206621]
[1644202538176,28.92403677,115.25,115.17,1.18206621]
[1644202538380,36.9093,115.24,115.17,1.18206621]
[1644202538578,35.53162268,115.23,115.17,1.18206621]
[1644202538778,35.78162268,115.23,115.17,1.18206621]
[1644202538978,35.78162268,115.23,115.17,0.68206621]
[1644202541381,35.78162268,115.23,115.17,0.01220724]
[1644202541879,35.78162268,115.23,115.17,0.33629235]
[1644202542079,35.53162268,115.23,115.17,0.32408511]
[1644202542480,35.78162268,115.23,115.14,31.32848511]
[1644202542681,35.53162268,115.23,115.14,19.0244]
[1644202542882,35.53162268,115.23,115.14,29.07101245]
[1644202543683,35.53162268,115.23,115.15,12.48]
[1644202543884,35.53162268,115.23,115.17,13.0203]
[1644202544285,35.53162268,115.23,115.17,19.2703]
[1644202544488,22.8683,115.27,115.17,19.2703]
[1644202544685,12.48,115.3,115.17,31.7503]
[1644202544886,13.016,115.32,115.17,31.7503]
[1644202545093,23.3966,115.35,115.17,188.9802039]
[1644202545295,29.92143917,115.35,115.17,219.83602329]
[1644202545487,36.23324896,115.34,115.19,156.03]
[1644202545686,36.23324896,115.34,115.23,13.0118]
[1644202545894,36.23324896,115.34,115.24,12.48]
[1644202546093,36.23324896,115.34,115.24,20.88348137]
[1644202546288,36.23324896,115.34,115.24,21.13348137]
[1644202547088,2.5,115.3,115.24,20.63348137]
[1644202547787,2.5,115.3,115.26,13.0112]
[1644202547987,2.5,115.3,115.27,12.48]
[1644202548187,2.5,115.3,115.28,12.48]
[1644202548388,8.12926264,115.4,115.28,12.48]
[1644202548588,51.8704,115.42,115.28,20.91683917]
[1644202548792,35.13720494,115.41,115.32,13.0014]
[1644202548991,23.7097,115.46,115.33,12.48]
[1644202549289,23.7097,115.46,115.33,18.73]
[1644202549687,6.51883917,115.45,115.33,18.73]
[1644202549889,37.50830239,115.44,115.33,18.73]
[1644202550091,92.19514156,115.44,115.31,12.48]
[1644202550290,92.19514156,115.44,115.31,12.73]
[1644202550291,55.84403917,115.43,115.31,12.73]
[1644202550892,45.57484476,115.42,115.31,12.48]
[1644202551294,48.01168393,115.42,115.31,12.48]
[1644202551693,47.51168393,115.42,115.31,12.48]
[1644202552092,60.51768393,115.42,115.32,13.004]
[1644202552298,64.85068393,115.42,115.32,13.004]
[1644202552693,49.65784476,115.42,115.32,13.004]
[1644202552894,49.65784476,115.42,115.32,19.004]
[1644202553295,45.32484476,115.42,115.32,19.004]
[1644202553693,45.07484476,115.42,115.32,19.254]
[1644202554898,45.07484476,115.42,115.32,13.004]
[1644202555097,58.33014476,115.42,115.32,13.004]
[1644202555697,60.51698393,115.42,115.31,12.48]
[1644202555897,52.5,115.41,115.3,13.0066]
[1644202556099,13.0107,115.37,115.29,4.333]
[1644202556297,13.2607,115.37,115.25,12.48]
[1644202556499,13.2607,115.37,115.28,0.25]
[1644202556798,38.15509845,115.36,115.28,0.25]
[1644202557197,38.40509845,115.36,115.28,0.25]
[1644202557597,38.40509845,115.36,115.27,13.2601]
[1644202558098,38.15509845,115.36,115.28,8.21019563]
[1644202558302,38.15509845,115.36,115.29,13.0079]
[1644202558706,38.15509845,115.36,115.29,13.2579]
[1644202559306,38.15509845,115.36,115.27,13.0098]
[1644202559506,38.40509845,115.36,115.27,13.0098]
[1644202559706,38.40509845,115.36,115.24,4.335]
[1644202559906,38.40509845,115.36,115.24,20.745]
[1644202560109,38.40509845,115.36,115.24,14.745]
[1644202560310,38.40509845,115.36,115.25,2.59067816]
[1644202560508,38.40509845,115.36,115.24,20.245]
[1644202560909,51.41729845,115.36,115.24,20.245]
[1644202561110,51.41729845,115.36,115.25,13.0119]
[1644202561509,2.18683917,115.35,115.24,3.835]
[1644202561714,42.04090676,115.33,115.24,3.835]
[1644202561910,13.0179,115.31,115.24,3.835]
[1644202562112,23.8819,115.31,115.24,3.835]
[1644202562329,24.1319,115.31,115.24,3.835]
[1644202562530,24.1319,115.31,115.19,13.0179]
[1644202562729,67.71289829,115.31,115.2,8.47221225]
[1644202563028,43.83099829,115.31,115.2,8.47221225]
[1644202563231,43.83099829,115.31,115.2,14.72221225]
[1644202563429,43.83099829,115.31,115.21,13.0156]
[1644202563828,43.83099829,115.31,115.21,13.2656]
[1644202564429,43.83099829,115.31,115.21,23.30561795]
[1644202564630,43.83099829,115.31,115.21,29.30561795]
[1644202564829,43.58099829,115.31,115.21,19.2656]
[1644202565029,43.58099829,115.31,115.21,13.0156]
[1644202565230,43.83099829,115.31,115.19,13.0179]
[1644202565531,13.023,115.27,115.15,15.9479039]
[1644202565733,13.023,115.27,115.14,9.72959537]
[1644202565734,86.76219762,115.26,115.14,9.72959537]
[1644202566033,88.94903679,115.26,115.14,15.72959537]
[1644202566237,87.01219762,115.26,115.15,10.41]
[1644202566432,87.01219762,115.26,115.16,15.65963514]
[1644202566632,100.03409762,115.26,115.16,15.65963514]
[1644202567532,87.01219762,115.26,115.16,15.65963514]
[1644202567932,87.01219762,115.26,115.16,21.65963514]
[1644202568731,87.01219762,115.26,115.16,21.90963514]
[1644202569135,87.01219762,115.26,115.16,15.90963514]
[1644202570139,13.0202,115.28,115.16,21.90963514]
[1644202570342,136.8858,115.32,115.16,32.31963514]
[1644202570539,122.1368,115.32,115.16,32.31963514]
[1644202570738,122.1368,115.32,115.16,61.20052344]
[1644202570946,122.1368,115.32,115.16,62.40042734]
[1644202571144,39.34049002,115.31,115.16,62.40042734]
[1644202571342,39.34049002,115.31,115.21,13.0154]
[1644202571544,39.34049002,115.31,115.21,23.4254]
[1644202571849,39.34049002,115.31,115.21,0.25]
[1644202572043,23.0362,115.3,115.21,0.25]
[1644202572342,23.2862,115.3,115.21,0.25]
[1644202572543,0.25,115.3,115.21,0.25]
[1644202572743,39.34049002,115.31,115.23,1.15895884]
[1644202572946,24.8882,115.32,115.23,1.15895884]
[1644202573244,23.4069,115.35,115.24,10.41]
[1644202573644,23.4069,115.35,115.24,16.66]
[1644202573844,37.95808735,115.34,115.24,29.6727]
[1644202574546,37.95808735,115.34,115.25,9.2838954]
[1644202574745,37.95808735,115.34,115.26,10.41]
[1644202575145,37.95808735,115.34,115.26,10.66]
[1644202575343,37.95808735,115.34,115.26,16.66]
[1644202575545,37.95808735,115.34,115.27,13.0093]
[1644202575746,38.20808735,115.34,115.26,10.41]
[1644202576347,38.20808735,115.34,115.24,16.41]
[1644202576547,38.20808735,115.34,115.24,10.41]
[1644202576752,51.22118735,115.34,115.25,13.0117]
[1644202577150,51.22118735,115.34,115.25,19.0117]
[1644202577546,51.22118735,115.34,115.25,6.25]
[1644202577747,53.40802652,115.34,115.25,2.89699712]
[1644202577946,53.40802652,115.34,115.25,6.25]
[1644202578554,53.40802652,115.34,115.25,0.25]
[1644202578748,53.40802652,115.34,115.24,10.41]
[1644202578749,53.40802652,115.34,115.24,10.66]
[1644202578949,53.40802652,115.34,115.24,19.68760617]
[1644202579159,53.40802652,115.34,115.24,10.66]
[1644202579353,53.40802652,115.34,115.22,10.41]
[1644202579555,27.5362,115.33,115.21,4.336]
[1644202579762,13.0165,115.31,115.21,4.336]
[1644202580158,46.79386913,115.3,115.21,14.36863655]
[1644202580356,47.04386913,115.3,115.21,14.36863655]
[1644202580555,47.04386913,115.3,115.21,17.3525]
[1644202580757,47.04386913,115.3,115.21,13.0165]
[1644202581158,62.2482083,115.3,115.21,13.0165]
[1644202581359,62.2482083,115.3,115.2,10.41]
[1644202581560,62.2482083,115.3,115.17,78.22951596]
[1644202581758,39.19438259,115.28,115.19,13.0185]
[1644202582158,39.19438259,115.28,115.19,13.2685]
[1644202582757,39.19438259,115.28,115.19,23.6785]
[1644202582960,39.19438259,115.28,115.19,29.6785]
[1644202583859,39.44438259,115.28,115.19,29.6785]
[1644202584458,39.44438259,115.28,115.19,29.4285]
[1644202584659,39.44438259,115.28,115.17,24.6305039]
[1644202584861,41.63122176,115.28,115.17,13.0206]
[1644202585159,39.44438259,115.28,115.18,10.41]
[1644202585358,39.44438259,115.28,115.18,11.6099039]
[1644202585658,39.44438259,115.28,115.19,8.45469898]
[1644202585858,39.44438259,115.28,115.19,8.70469898]
[1644202586061,39.44438259,115.28,115.2,13.0174]
[1644202586264,39.44438259,115.28,115.21,2.71332763]
[1644202586661,39.44438259,115.28,115.21,2.96332763]
[1644202586863,39.44438259,115.28,115.21,0.25]
[1644202587762,24.7144,115.29,115.2,10.41]
[1644202587963,24.7144,115.29,115.21,13.0162]
[1644202588364,24.7144,115.29,115.21,13.2662]
[1644202588786,46.86243311,115.28,115.21,13.2662]
[1644202589986,46.86243311,115.28,115.21,14.4661039]
[1644202590588,46.86243311,115.28,115.21,13.2662]
[1644202591191,24.7144,115.29,115.21,13.2662]
[1644202591789,24.9644,115.29,115.21,13.2662]
[1644202592192,34.25794969,115.28,115.21,13.2662]
[1644202592692,34.50794969,115.28,115.21,13.2662]
[1644202592891,0.25,115.28,115.21,15.24390038]
[1644202593090,0.25,115.28,115.21,20.99390038]
[1644202593290,24.7144,115.29,115.21,20.99390038]
[1644202593491,23.9359,115.32,115.22,10.41]
[1644202593691,23.9359,115.32,115.25,13.0123]
[1644202593892,40.05822764,115.33,115.26,1.97770038]
[1644202594092,40.05822764,115.33,115.26,6.0]
[1644202594294,24.3936,115.35,115.26,6.0]
[1644202594693,24.3936,115.35,115.27,23.4203]
[1644202595094,24.3936,115.35,115.27,29.6703]
[1644202595296,46.47641702,115.34,115.27,29.6703]
[1644202595893,46.47641702,115.34,115.27,23.6703]
[1644202596294,24.3936,115.35,115.27,25.89362804]
[1644202596898,24.3936,115.35,115.27,31.89362804]
[1644202597694,128.43051362,115.41,115.27,31.89362804]
[1644202597898,47.199,115.4,115.27,36.22862804]
[1644202598295,46.360569,115.39,115.27,37.42853194]
[1644202598495,46.360569,115.39,115.27,33.09353194]
[1644202599895,46.360569,115.39,115.27,31.89362804]
[1644202600096,46.610569,115.39,115.27,31.89362804]
[1644202600797,46.360569,115.39,115.27,31.89362804]
[1644202600997,46.360569,115.39,115.27,33.09353194]
[1644202601299,46.610569,115.39,115.27,31.89362804]
[1644202601505,13.0041,115.42,115.27,31.89362804]
[1644202601698,1.22871362,115.43,115.27,31.89362804]
[1644202601699,47.8443,115.43,115.32,13.0011]
[1644202601899,47.8443,115.43,115.33,10.41]
[1644202602098,47.8443,115.43,115.33,16.41]
[1644202602299,47.8443,115.43,115.33,16.66]
[1644202602500,49.07301362,115.47,115.34,8.43144672]
[1644202602700,1.22871362,115.47,115.35,10.41]
[1644202602902,5.56071362,115.49,115.35,149.14150917]
[1644202603099,1.22871362,115.49,115.36,2.18683917]
[1644202603300,1.22871362,115.49,115.37,10.41]
[1644202603502,48.59968611,115.48,115.37,10.41]